[Event "POL-chT 2 Liga 2019"]
[Site "Poronin"]
[Date "2019.09.13"]
[Round "7.22"]
[White "Szoen, Dariusz"]
[Black "Sendera, Jaroslaw"]
[Result "1/2-1/2"]
[ECO "B24"]
[WhiteElo "2415"]
[BlackElo "2203"]
[Annotator "NA"]
[PlyCount "42"]
[EventDate "2019.09.07"]
[EventType "team-tourn"]
[EventCountry "POL"]
[SourceTitle "playchess.com"]
[Source "ChessBase"]
[SourceQuality "1"]
[TimeControl "40/5400+30:1800+30"]

1. e4 {[%emt 0:02:48]} c5 {[%emt 0:00:00]} 2. Nc3 {[%emt 0:00:06]} Nc6 {[%emt 0:00:47]} 3. Bb5 {[%emt 0:00:25]} Nd4 {[%emt 0:01:15]} 4. Bc4 {[%emt 0:00:07]} e6 {[%emt 0:01:44]} 5. Nge2 {[%emt 0:01:00]} a6 {[%emt 0:10:15]} 6. a4 {[%emt 0:00:08]} Nf6 {[%emt 0:01:40]} 7. O-O {[%emt 0:01:36]} d5 {[%emt 0:02:02]} 8. exd5 {[%emt 0:00:16]} exd5 {[%emt 0:00:23]} 9. Ba2 {[%emt 0:01:17]} Nxe2+ {[%emt 0:03:24]} 10. Qxe2+ {[%emt 0:02:50]} Be7 {[%emt 0:00:22]} 11. d3 {[%emt 0:03:16]} d4 {[%emt 0:22:18]} 12. Ne4 {[%emt 0:04:06]} Nxe4 {[%emt 0:01:55]} 13. Qxe4 {[%emt 0:00:11]} O-O {[%emt 0:00:15]} 14. Re1 {[%emt 0:10:23]} Bd6 {[%emt 0:02:26]} 15. Bf4 {[%emt 0:00:19]} Bxf4 {[%emt 0:09:10]} 16. Qxf4 {[%emt 0:00:03]} b6 {[%emt 0:04:15]} 17. Re5 {[%emt 0:16:30]} Ra7 {[%emt 0:08:35]} 18. Rae1 {[%emt 0:00:14]} h6 {[%emt 0:01:57]} 19. a5 {[%emt 0:14:03]} b5 {[%emt 0:12:13]} 20. Qd2 {[%emt 0:21:49]} Rc7 {[%emt 0:01:18]} 21. h3 {[%emt 0:01:14]} Bb7 {[%emt 0:04:34]} 1/2-1/2

[Event "POL-chT 2 Liga 2019"]
[Site "Poronin"]
[Date "2019.09.13"]
[Round "7.23"]
[White "Polok, Rafal"]
[Black "Gmaj, Krzysztof"]
[Result "0-1"]
[ECO "C01"]
[WhiteElo "2053"]
[BlackElo "2120"]
[Annotator "NA"]
[PlyCount "72"]
[EventDate "2019.09.07"]
[EventType "team-tourn"]
[EventCountry "POL"]
[SourceTitle "playchess.com"]
[Source "ChessBase"]
[SourceQuality "1"]
[TimeControl "40/5400+30:1800+30"]

1. e4 {[%emt 0:00:00]} e6 {[%emt 0:00:00]} 2. d4 {[%emt 0:00:00]} d5 {[%emt 0:00:00]} 3. exd5 {[%emt 0:00:00]} exd5 {[%emt 0:00:00]} 4. c4 {[%emt 0:00:00]} Nf6 {[%emt 0:00:49]} 5. Nc3 {[%emt 0:01:26]} Be7 {[%emt 0:01:29]} 6. Bd3 {[%emt 0:01:33]} Nc6 {[%emt 0:03:31]} 7. cxd5 {[%emt 0:11:20]} Nxd5 {[%emt 0:02:34]} 8. Be4 {[%emt 0:05:09]} Nf6 {[%emt 0:07:22]} 9. Bxc6+ {[%emt 0:05:17]} bxc6 {[%emt 0:00:35]} 10. Be3 {[%emt 0:02:39]} O-O {[%emt 0:01:49]} 11. Nge2 {[%emt 0:00:45]} Bf5 {[%emt 0:10:17]} 12. O-O {[%emt 0:02:51]} Rb8 {[%emt 0:03:28]} 13. Ng3 {[%emt 0:04:17]} Bg6 {[%emt 0:03:03]} 14. Qa4 {[%emt 0:15:34]} Rxb2 {[%emt 0:05:23]} 15. Qxc6 {[%emt 0:02:03]} h5 {[%emt 0:04:47]} 16. h3 {[%emt 0:10:39]} h4 {[%emt 0:05:56]} 17. Nge2 {[%emt 0:00:11]} Re8 {[%emt 0:04:06]} 18. Nf4 {[%emt 0:02:49]} Bf5 {[%emt 0:01:42]} 19. Rfd1 {[%emt 0:04:27]} Bd6 {[%emt 0:02:31]} 20. Rac1 {[%emt 0:02:42]} Ne4 {[%emt 0:02:27]} 21. Nfd5 {[%emt 0:06:43]} Re6 {[%emt 0:03:08]} 22. Qc4 {[%emt 0:03:33]} Rg6 {[%emt 0:01:03]} 23. Na4 {[%emt 0:02:04]} Bxh3 {[%emt 0:11:30]} 24. Nxb2 {[%emt 0:01:50]} Bxg2 {[%emt 0:00:30]} 25. f3 {[%emt 0:11:13]} Bxf3+ {[%emt 0:06:13]} 26. Kf1 {[%emt 0:00:17]} Qd7 {[%emt 0:01:10]} 27. Rd2 {[%emt 0:03:28]} Qh3+ {[%emt 0:00:44]} 28. Ke1 {[%emt 0:00:23]} Bg3+ {[%emt 0:01:37]} 29. Rf2 {[%emt 0:00:35]} Nxf2 {[%emt 0:05:54]} 30. Bxf2 Re6+ {[%emt 0:01:20]} 31. Kd2 {[%emt 0:00:47]} Bxf2 {[%emt 0:00:22]} 32. Nd3 {[%emt 0:00:51]} Bxd5 {[%emt 0:01:19]} 33. Qxd5 {[%emt 0:00:06]} Be3+ {[%emt 0:00:36]} 34. Kc2 {[%emt 0:00:05]} Qh2+ {[%emt 0:00:21]} 35. Kc3 {[%emt 0:00:43]} Qd2+ {[%emt 0:01:35]} 36. Kc4 {[%emt 0:00:16]} Qxa2+ 0-1

[Event "POL-chT 2 Liga 2019"]
[Site "Poronin"]
[Date "2019.09.13"]
[Round "7.24"]
[White "Kubicka, Anna"]
[Black "Trybowska, Barbara"]
[Result "1-0"]
[ECO "B23"]
[WhiteElo "2225"]
[BlackElo "1689"]
[Annotator "NA"]
[PlyCount "109"]
[EventDate "2019.09.07"]
[EventType "team-tourn"]
[EventCountry "POL"]
[SourceTitle "playchess.com"]
[Source "ChessBase"]
[SourceQuality "1"]
[TimeControl "40/5400+30:1800+30"]

1. e4 {[%emt 0:00:00]} c5 {[%emt 0:00:00]} 2. Ne2 {[%emt 0:00:39]} Nc6 {[%emt 0:00:00]} 3. Nbc3 {[%emt 0:00:51]} e6 {[%emt 0:00:44]} 4. g3 {[%emt 0:02:11]} d5 {[%emt 0:02:12]} 5. Bg2 {[%emt 0:06:29]} Nf6 {[%emt 0:08:29]} 6. O-O {[%emt 0:03:08]} d4 {[%emt 0:02:43]} 7. Nb1 {[%emt 0:00:35]} e5 {[%emt 0:02:20]} 8. d3 {[%emt 0:00:09]} Bd6 {[%emt 0:02:44]} 9. Nd2 {[%emt 0:00:15]} h5 {[%emt 0:04:23]} 10. Nc4 {[%emt 0:10:42]} b5 {[%emt 0:05:29]} 11. Nxd6+ {[%emt 0:01:18]} Qxd6 {[%emt 0:00:08]} 12. h3 {[%emt 0:03:18]} h4 {[%emt 0:11:36]} 13. g4 {[%emt 0:04:41]} Bd7 {[%emt 0:11:05]} 14. Kh1 {[%emt 0:05:01]} Nh7 {[%emt 0:09:33]} 15. f4 {[%emt 0:01:06]} f6 {[%emt 0:01:15]} 16. a4 {[%emt 0:05:15]} b4 {[%emt 0:02:05]} 17. c3 {[%emt 0:05:09]} g5 {[%emt 0:03:05]} 18. fxg5 {[%emt 0:00:17]} Nxg5 {[%emt 0:01:17]} 19. cxd4 {[%emt 0:00:18]} cxd4 {[%emt 0:02:34]} 20. a5 {[%emt 0:03:47]} Rb8 {[%emt 0:07:17]} 21. Qb3 {[%emt 0:12:34]} Qe7 {[%emt 0:01:15]} 22. Bxg5 {[%emt 0:11:29]} fxg5 {[%emt 0:00:09]} 23. Ng1 {[%emt 0:00:08]} Be6 {[%emt 0:01:01]} 24. Qa4 {[%emt 0:00:13]} Bd7 {[%emt 0:01:27]} 25. Qd1 {[%emt 0:02:24]} Rf8 {[%emt 0:01:29]} 26. Qd2 {[%emt 0:02:16]} Nd8 {[%emt 0:02:13]} 27. Rf5 {[%emt 0:06:17]} Bxf5 {[%emt 0:03:46]} 28. exf5 {[%emt 0:00:02]} Rc8 {[%emt 0:02:09]} 29. Nf3 {[%emt 0:00:49]} Nf7 {[%emt 0:00:19]} 30. Re1 {[%emt 0:01:29]} Qd6 {[%emt 0:04:23]} 31. f6 {[%emt 0:02:07]} b3 {[%emt 0:01:23]} 32. a6 {[%emt 0:04:13]} Kd7 {[%emt 0:03:18]} 33. Qa5 {[%emt 0:00:27]} Rc6 {[%emt 0:01:48]} 34. Qa4 {[%emt 0:01:20]} Rfc8 {[%emt 0:01:23]} 35. Qxb3 {[%emt 0:01:48]} Qxf6 {[%emt 0:00:15]} 36. Qd5+ {[%emt 0:00:52]} Rd6 {[%emt 0:00:39]} 37. Qb5+ {[%emt 0:00:38]} Kd8 {[%emt 0:00:44]} 38. Qa5+ {[%emt 0:01:58]} Kd7 {[%emt 0:00:12]} 39. Rf1 {[%emt 0:01:31]} Qe6 {[%emt 0:00:40]} 40. Nd2 {[%emt 0:00:00]} Rxa6 {[%emt 0:00:00]} 41. Qb5+ {[%emt 0:02:43]} Kd8 {[%emt 0:05:58]} 42. Bd5 {[%emt 0:05:23]} Nd6 {[%emt 0:05:41]} 43. Bxe6 {[%emt 0:07:42]} Nxb5 {[%emt 0:00:08]} 44. Rf8+ {[%emt 0:01:51]} Ke7 {[%emt 0:00:16]} 45. Bxc8 {[%emt 0:00:37]} Rc6 {[%emt 0:01:05]} 46. Rf5 {[%emt 0:00:51]} Rxc8 {[%emt 0:04:42]} 47. Rxe5+ {[%emt 0:01:39]} Kd6 {[%emt 0:01:02]} 48. Re2 {[%emt 0:05:52]} Kd5 {[%emt 0:05:15]} 49. Nf3 {[%emt 0:03:27]} Rc1+ {[%emt 0:01:20]} 50. Kg2 {[%emt 0:00:02]} Rd1 {[%emt 0:00:20]} 51. Re5+ {[%emt 0:00:21]} Kc6 {[%emt 0:00:08]} 52. Rxg5 {[%emt 0:00:25]} Rb1 {[%emt 0:01:02]} 53. Ne5+ {[%emt 0:00:20]} Kc5 {[%emt 0:00:52]} 54. Nc4+ {[%emt 0:00:07]} Kb4 {[%emt 0:00:08]} 55. Rxb5+ {[%emt 0:00:10]} 1-0

[Event "POL-chT 2 Liga 2019"]
[Site "Poronin"]
[Date "2019.09.13"]
[Round "7.25"]
[White "Stachowiak, Kamil"]
[Black "Chojnacki, Krzysztof"]
[Result "1/2-1/2"]
[ECO "E63"]
[WhiteElo "2444"]
[BlackElo "2362"]
[Annotator "NA"]
[PlyCount "65"]
[EventDate "2019.09.07"]
[EventType "team-tourn"]
[EventCountry "POL"]
[SourceTitle "playchess.com"]
[Source "ChessBase"]
[SourceQuality "1"]
[TimeControl "40/5400+30:1800+30"]

1. d4 {[%emt 0:00:00]} Nf6 {[%emt 0:00:00]} 2. c4 {[%emt 0:00:00]} g6 {[%emt 0:00:00]} 3. Nf3 {[%emt 0:00:00]} Bg7 {[%emt 0:00:00]} 4. g3 {[%emt 0:00:00]} O-O {[%emt 0:00:09]} 5. Bg2 {[%emt 0:00:07]} d6 {[%emt 0:00:11]} 6. O-O {[%emt 0:00:27]} Nc6 {[%emt 0:00:10]} 7. Nc3 {[%emt 0:00:24]} a6 {[%emt 0:00:08]} 8. b3 {[%emt 0:01:57]} Rb8 {[%emt 0:00:47]} 9. Nd5 {[%emt 0:02:45]} Nxd5 {[%emt 0:00:46]} 10. cxd5 {[%emt 0:02:23]} Nb4 {[%emt 0:00:04]} 11. Ne1 {[%emt 0:06:49]} c6 {[%emt 0:04:58]} 12. dxc6 {[%emt 0:04:27]} Nxc6 {[%emt 0:01:00]} 13. Bb2 {[%emt 0:00:20]} d5 {[%emt 0:06:18]} 14. e3 {[%emt 0:07:03]} Qa5 {[%emt 0:06:32]} 15. Nd3 {[%emt 0:02:17]} Bf5 {[%emt 0:03:40]} 16. Nf4 {[%emt 0:09:15]} Rfd8 {[%emt 0:04:10]} 17. g4 {[%emt 0:01:54]} Bc8 {[%emt 0:01:31]} 18. Nd3 {[%emt 0:07:33]} Qc7 {[%emt 0:17:32]} 19. f4 {[%emt 0:09:42]} Qd6 {[%emt 0:01:53]} 20. h3 {[%emt 0:01:36]} b6 {[%emt 0:01:20]} 21. Rc1 {[%emt 0:02:33]} a5 {[%emt 0:03:22]} 22. Rf2 {[%emt 0:04:37]} Ba6 {[%emt 0:05:29]} 23. Ne5 {[%emt 0:02:08]} Rbc8 {[%emt 0:02:29]} 24. Nxc6 {[%emt 0:10:16]} Rxc6 {[%emt 0:00:42]} 25. Rxc6 {[%emt 0:00:06]} Qxc6 {[%emt 0:00:06]} 26. Rc2 {[%emt 0:00:06]} Qe8 {[%emt 0:06:58]} 27. Qc1 {[%emt 0:02:06]} e6 {[%emt 0:01:38]} 28. Ba3 {[%emt 0:05:23]} Bf8 {[%emt 0:02:36]} 29. Bxf8 {[%emt 0:01:27]} Qxf8 {[%emt 0:00:45]} 30. Bf1 {[%emt 0:01:46]} Bb7 {[%emt 0:03:54]} 31. Rc7 {[%emt 0:04:19]} Rc8 {[%emt 0:00:51]} 32. Rxc8 {[%emt 0:00:16]} Qxc8 {[%emt 0:00:06]} 33. Qxc8+ {[%emt 0:00:05]} 1/2-1/2

[Event "POL-chT 2 Liga 2019"]
[Site "Poronin"]
[Date "2019.09.13"]
[Round "7.26"]
[White "Raczynski, Krzysztof"]
[Black "Dobrowolski, Piotr"]
[Result "0-1"]
[ECO "A02"]
[WhiteElo "2244"]
[BlackElo "2415"]
[Annotator "NA"]
[PlyCount "72"]
[EventDate "2019.09.07"]
[EventType "team-tourn"]
[EventCountry "POL"]
[SourceTitle "playchess.com"]
[Source "ChessBase"]
[SourceQuality "1"]
[TimeControl "40/5400+30:1800+30"]

1. f4 {[%emt 0:00:00]} b6 {[%emt 0:00:00]} 2. e4 {[%emt 0:02:03]} Bb7 {[%emt 0:00:13]} 3. Nc3 {[%emt 0:00:41]} e6 {[%emt 0:01:04]} 4. d4 {[%emt 0:06:21]} Bb4 {[%emt 0:05:00]} 5. Bd3 {[%emt 0:04:56]} Nf6 {[%emt 0:08:13]} 6. Qe2 {[%emt 0:06:08]} d5 {[%emt 0:01:09]} 7. e5 {[%emt 0:03:26]} Ne4 {[%emt 0:00:47]} 8. Bd2 {[%emt 0:03:29]} Bxc3 {[%emt 0:11:06]} 9. bxc3 {[%emt 0:04:31]} Qh4+ {[%emt 0:02:45]} 10. g3 {[%emt 0:02:58]} Qe7 {[%emt 0:00:05]} 11. Nh3 {[%emt 0:03:38]} Nd7 {[%emt 0:03:46]} 12. Nf2 {[%emt 0:05:57]} f5 {[%emt 0:04:02]} 13. exf6 Ndxf6 {[%emt 0:00:31]} 14. a4 {[%emt 0:06:22]} a5 {[%emt 0:12:51]} 15. Bb5+ {[%emt 0:05:53]} Kf7 {[%emt 0:01:42]} 16. Nd3 {[%emt 0:01:49]} Rhc8 {[%emt 0:00:07]} 17. O-O {[%emt 0:02:39]} Kg8 {[%emt 0:01:40]} 18. Ne5 {[%emt 0:00:43]} c5 {[%emt 0:02:16]} 19. Ra2 {[%emt 0:04:34]} Nd6 {[%emt 0:10:02]} 20. Rb1 {[%emt 0:04:44]} Rc7 {[%emt 0:05:51]} 21. Rab2 {[%emt 0:02:32]} c4 {[%emt 0:09:36]} 22. Rf1 {[%emt 0:07:56]} Nfe4 {[%emt 0:00:52]} 23. Rf3 {[%emt 0:01:07]} Nf7 {[%emt 0:09:58]} 24. Rb1 {[%emt 0:04:49]} Nxe5 {[%emt 0:00:38]} 25. fxe5 {[%emt 0:00:58]} Rf8 {[%emt 0:00:35]} 26. Rbf1 {[%emt 0:01:32]} Rxf3 {[%emt 0:00:44]} 27. Rxf3 {[%emt 0:00:09]} Rc8 {[%emt 0:00:51]} 28. Bc1 {[%emt 0:06:28]} Bc6 {[%emt 0:02:29]} 29. Bxc6 {[%emt 0:01:10]} Rxc6 {[%emt 0:00:01]} 30. Rf4 {[%emt 0:00:42]} Rc8 {[%emt 0:00:43]} 31. Qg4 {[%emt 0:01:11]} Rf8 {[%emt 0:01:55]} 32. h4 {[%emt 0:01:03]} Rxf4 {[%emt 0:00:20]} 33. Bxf4 {[%emt 0:00:13]} Nxc3 {[%emt 0:00:50]} 34. h5 {[%emt 0:01:01]} Ne4 {[%emt 0:00:08]} 35. Kg2 {[%emt 0:00:53]} Kh8 {[%emt 0:02:36]} 36. Qh4 {[%emt 0:04:22]} Qd7 {[%emt 0:00:21]} 0-1

[Event "POL-chT 2 Liga 2019"]
[Site "Poronin"]
[Date "2019.09.13"]
[Round "7.27"]
[White "Piotrowski, Przemyslaw"]
[Black "Bardeli, Lukasz"]
[Result "1-0"]
[ECO "D79"]
[WhiteElo "2293"]
[BlackElo "2144"]
[Annotator "NA"]
[PlyCount "103"]
[EventDate "2019.09.07"]
[EventType "team-tourn"]
[EventCountry "POL"]
[SourceTitle "playchess.com"]
[Source "ChessBase"]
[SourceQuality "1"]
[TimeControl "40/5400+30:1800+30"]

1. Nf3 {[%emt 0:00:00]} d5 {[%emt 0:00:00]} 2. d4 {[%emt 0:00:00]} Nf6 {[%emt 0:00:00]} 3. g3 {[%emt 0:00:00]} g6 {[%emt 0:02:28]} 4. Bg2 {[%emt 0:00:00]} Bg7 {[%emt 0:00:04]} 5. O-O {[%emt 0:00:00]} O-O {[%emt 0:00:03]} 6. c4 {[%emt 0:00:03]} c6 {[%emt 0:00:03]} 7. cxd5 {[%emt 0:00:05]} cxd5 {[%emt 0:00:02]} 8. Nc3 {[%emt 0:00:05]} e6 {[%emt 0:00:08]} 9. Bf4 {[%emt 0:05:27]} Nc6 {[%emt 0:00:22]} 10. Ne5 {[%emt 0:04:36]} Bd7 {[%emt 0:12:29]} 11. e4 {[%emt 0:12:19]} dxe4 {[%emt 0:01:25]} 12. Nxe4 {[%emt 0:02:39]} Nd5 {[%emt 0:03:52]} 13. Bg5 {[%emt 0:19:37]} f6 {[%emt 0:01:56]} 14. Nc5 {[%emt 0:09:06]} Bc8 {[%emt 0:07:25]} 15. Nxc6 {[%emt 0:01:43]} bxc6 {[%emt 0:00:03]} 16. Bd2 {[%emt 0:01:48]} f5 {[%emt 0:00:44]} 17. Qa4 {[%emt 0:10:50]} Qd6 {[%emt 0:03:17]} 18. Rac1 {[%emt 0:05:46]} Kh8 {[%emt 0:01:52]} 19. Rfe1 {[%emt 0:01:05]} Re8 {[%emt 0:03:49]} 20. b3 {[%emt 0:03:53]} Rb8 {[%emt 0:05:33]} 21. Bxd5 {[%emt 0:04:37]} Qxd5 {[%emt 0:00:30]} 22. Bf4 {[%emt 0:00:07]} Rb5 {[%emt 0:12:42]} 23. Be5 {[%emt 0:01:25]} Re7 {[%emt 0:00:35]} 24. Bxg7+ {[%emt 0:01:09]} Kxg7 {[%emt 0:00:55]} 25. Re5 {[%emt 0:00:58]} Qd6 {[%emt 0:01:24]} 26. Rce1 {[%emt 0:00:37]} a5 {[%emt 0:01:27]} 27. a3 {[%emt 0:00:05]} Kf7 {[%emt 0:05:13]} 28. Qc4 {[%emt 0:00:36]} Rb8 {[%emt 0:00:22]} 29. Qc3 {[%emt 0:04:26]} Bd7 {[%emt 0:01:18]} 30. R1e3 {[%emt 0:00:43]} Rbe8 {[%emt 0:00:16]} 31. Kg2 {[%emt 0:03:30]} Bc8 {[%emt 0:00:19]} 32. Rd3 {[%emt 0:01:40]} Ra7 {[%emt 0:00:51]} 33. Qc4 {[%emt 0:01:23]} Rae7 {[%emt 0:00:17]} 34. Qc1 {[%emt 0:01:54]} Kg8 {[%emt 0:00:27]} 35. Qc4 {[%emt 0:01:17]} Kf7 {[%emt 0:00:13]} 36. h3 {[%emt 0:00:07]} Kg8 {[%emt 0:00:27]} 37. Rde3 {[%emt 0:01:08]} Kf7 {[%emt 0:00:48]} 38. g4 {[%emt 0:00:27]} Kg7 {[%emt 0:01:32]} 39. Qc3 {[%emt 0:02:04]} Kg8 {[%emt 0:00:54]} 40. Qc4 {[%emt 0:00:00]} Kg7 {[%emt 0:00:00]} 41. a4 {[%emt 0:07:04]} Kh8 {[%emt 0:01:03]} 42. Rd3 {[%emt 0:02:55]} Qc7 {[%emt 0:00:35]} 43. Qc3 {[%emt 0:06:11]} Kg8 {[%emt 0:00:04]} 44. Qd2 {[%emt 0:00:12]} Rd8 {[%emt 0:03:00]} 45. Qg5 {[%emt 0:01:31]} Kf7 {[%emt 0:01:41]} 46. Qh4 {[%emt 0:01:59]} Rxd4 {[%emt 0:09:47]} 47. Qxh7+ {[%emt 0:01:58]} Kf6 {[%emt 0:00:17]} 48. Qh8+ {[%emt 0:01:25]} Rg7 {[%emt 0:01:29]} 49. Rxd4 {[%emt 0:02:03]} Kxe5 {[%emt 0:02:01]} 50. Rd8 {[%emt 0:00:16]} f4 {[%emt 0:11:32]} 51. Rxc8 {[%emt 0:02:59]} f3+ {[%emt 0:00:04]} 52. Kg1 {[%emt 0:00:44]} 1-0

[Event "POL-chT 2 Liga 2019"]
[Site "Poronin"]
[Date "2019.09.13"]
[Round "7.28"]
[White "Butyrowski, Marcel"]
[Black "Fudalej, Michal"]
[Result "1-0"]
[ECO "D35"]
[WhiteElo "1873"]
[BlackElo "2235"]
[Annotator "NA"]
[PlyCount "65"]
[EventDate "2019.09.07"]
[EventType "team-tourn"]
[EventCountry "POL"]
[SourceTitle "playchess.com"]
[Source "ChessBase"]
[SourceQuality "1"]
[TimeControl "40/5400+30:1800+30"]

1. d4 {[%emt 0:00:00]} d5 {[%emt 0:01:57]} 2. c4 {[%emt 0:00:00]} e6 {[%emt 0:00:40]} 3. Nc3 {[%emt 0:00:09]} Nf6 {[%emt 0:00:06]} 4. cxd5 {[%emt 0:00:16]} exd5 {[%emt 0:00:23]} 5. Bg5 {[%emt 0:00:05]} Be7 {[%emt 0:00:39]} 6. e3 {[%emt 0:00:04]} c6 {[%emt 0:00:44]} 7. Bd3 {[%emt 0:00:37]} Ne4 {[%emt 0:07:00]} 8. Bf4 {[%emt 0:09:07]} Nd6 {[%emt 0:09:51]} 9. Qc2 {[%emt 0:02:16]} Nd7 {[%emt 0:03:38]} 10. Nf3 {[%emt 0:09:08]} Nf6 {[%emt 0:01:09]} 11. h3 {[%emt 0:01:08]} g6 {[%emt 0:14:22]} 12. a3 {[%emt 0:06:00]} Bf5 {[%emt 0:02:18]} 13. O-O {[%emt 0:01:47]} O-O {[%emt 0:02:19]} 14. b4 {[%emt 0:02:17]} Nfe4 {[%emt 0:05:01]} 15. Nd2 {[%emt 0:02:31]} Nxd2 {[%emt 0:09:16]} 16. Qxd2 {[%emt 0:00:33]} Nc4 {[%emt 0:02:01]} 17. Bxc4 {[%emt 0:03:22]} dxc4 {[%emt 0:00:31]} 18. e4 {[%emt 0:01:04]} Be6 {[%emt 0:00:11]} 19. b5 {[%emt 0:01:44]} cxb5 {[%emt 0:05:00]} 20. d5 {[%emt 0:03:11]} Bd7 {[%emt 0:01:13]} 21. e5 {[%emt 0:00:54]} b4 {[%emt 0:03:59]} 22. axb4 {[%emt 0:00:55]} Bxb4 {[%emt 0:00:23]} 23. Rab1 {[%emt 0:01:19]} Qa5 {[%emt 0:02:07]} 24. Rxb4 {[%emt 0:01:31]} Qxb4 {[%emt 0:00:23]} 25. Bg5 {[%emt 0:01:00]} f6 {[%emt 0:11:58]} 26. Bxf6 {[%emt 0:01:51]} Bf5 {[%emt 0:04:24]} 27. d6 {[%emt 0:00:58]} Rf7 {[%emt 0:04:27]} 28. Qd4 {[%emt 0:07:10]} Rc8 {[%emt 0:01:58]} 29. Nd5 {[%emt 0:02:15]} Qc5 {[%emt 0:00:11]} 30. Qd1 {[%emt 0:13:35]} c3 {[%emt 0:01:18]} 31. Ne7+ {[%emt 0:00:31]} Rxe7 {[%emt 0:01:46]} 32. dxe7 {[%emt 0:00:38]} Re8 {[%emt 0:00:23]} 33. Qb3+ {[%emt 0:00:20] Rc8 Qd1 Qc6} 1-0

[Event "POL-chT 2 Liga 2019"]
[Site "Poronin"]
[Date "2019.09.13"]
[Round "7.29"]
[White "Kolasinski, Krzysztof"]
[Black "Wojdak, Jan"]
[Result "1/2-1/2"]
[ECO "B20"]
[WhiteElo "2104"]
[BlackElo "1973"]
[Annotator "NA"]
[PlyCount "58"]
[EventDate "2019.09.07"]
[EventType "team-tourn"]
[EventCountry "POL"]
[SourceTitle "playchess.com"]
[Source "ChessBase"]
[SourceQuality "1"]
[TimeControl "40/5400+30:1800+30"]

1. e4 {[%emt 0:00:00]} c5 {[%emt 0:00:00]} 2. b3 {[%emt 0:00:00]} d6 {[%emt 0:00:23]} 3. Bb2 {[%emt 0:00:08]} e5 {[%emt 0:00:15]} 4. Bc4 {[%emt 0:00:22]} Nf6 {[%emt 0:00:51]} 5. d3 {[%emt 0:00:22]} Be7 {[%emt 0:00:20]} 6. Ne2 {[%emt 0:00:15]} Nc6 {[%emt 0:01:28]} 7. O-O {[%emt 0:00:19]} O-O {[%emt 0:09:36]} 8. Nbc3 {[%emt 0:04:22]} Be6 {[%emt 0:04:33]} 9. f4 {[%emt 0:03:01]} Nd4 {[%emt 0:10:44]} 10. Qd2 {[%emt 0:16:33]} a6 {[%emt 0:07:42]} 11. a4 {[%emt 0:00:36]} Bxc4 {[%emt 0:03:29]} 12. bxc4 {[%emt 0:01:53]} b6 {[%emt 0:01:39]} 13. Nd5 {[%emt 0:03:36]} Nxd5 {[%emt 0:00:20]} 14. cxd5 {[%emt 0:05:40]} Nxe2+ {[%emt 0:08:58]} 15. Qxe2 {[%emt 0:00:02]} f6 {[%emt 0:00:09]} 16. c4 {[%emt 0:06:50]} Qd7 {[%emt 0:00:23]} 17. Ra2 {[%emt 0:06:03]} b5 {[%emt 0:03:12]} 18. Rfa1 {[%emt 0:06:58]} bxc4 {[%emt 0:09:04]} 19. dxc4 {[%emt 0:00:02]} Rab8 {[%emt 0:00:05]} 20. Ra3 {[%emt 0:04:31]} Rb7 {[%emt 0:00:07]} 21. Bc1 {[%emt 0:03:34]} Rfb8 {[%emt 0:00:14]} 22. f5 {[%emt 0:07:06]} Rb3 {[%emt 0:00:48]} 23. Qc2 {[%emt 0:01:53]} Qb7 {[%emt 0:01:29]} 24. Kf1 {[%emt 0:00:33]} Rxa3 {[%emt 0:05:44]} 25. Rxa3 {[%emt 0:07:00]} Qb1 {[%emt 0:00:54]} 26. Ra2 {[%emt 0:00:45]} Rb4 {[%emt 0:02:59]} 27. a5 {[%emt 0:02:06]} Bd8 {[%emt 0:01:01]} 28. Ke2 {[%emt 0:00:57]} Qxc2+ {[%emt 0:19:22]} 29. Rxc2 {[%emt 0:00:02]} Kf7 {[%emt 0:02:37]} 1/2-1/2

[Event "POL-chT 2 Liga 2019"]
[Site "Poronin"]
[Date "2019.09.13"]
[Round "7.30"]
[White "Szelag, Zuzanna"]
[Black "Dmochowska, Agnieszka"]
[Result "0-1"]
[ECO "C08"]
[WhiteElo "1824"]
[BlackElo "2110"]
[Annotator "NA"]
[PlyCount "88"]
[EventDate "2019.09.07"]
[EventType "team-tourn"]
[EventCountry "POL"]
[SourceTitle "playchess.com"]
[Source "ChessBase"]
[SourceQuality "1"]
[TimeControl "40/5400+30:1800+30"]

1. e4 {[%emt 0:00:00]} e6 {[%emt 0:00:00]} 2. d4 {[%emt 0:00:00]} d5 {[%emt 0:00:00]} 3. Nd2 {[%emt 0:00:00]} c5 {[%emt 0:00:00]} 4. exd5 {[%emt 0:00:00]} exd5 {[%emt 0:00:00]} 5. Ngf3 {[%emt 0:00:00]} Nf6 {[%emt 0:00:02]} 6. Bb5+ {[%emt 0:00:11]} Bd7 {[%emt 0:00:27]} 7. Bxd7+ {[%emt 0:00:29]} Nbxd7 {[%emt 0:01:12]} 8. Qe2+ {[%emt 0:03:52]} Be7 {[%emt 0:03:21]} 9. O-O {[%emt 0:02:23]} O-O {[%emt 0:00:06]} 10. dxc5 {[%emt 0:01:48]} Nxc5 {[%emt 0:00:37]} 11. Nb3 {[%emt 0:02:02]} Nce4 {[%emt 0:02:11]} 12. Be3 {[%emt 0:03:27]} Qc7 {[%emt 0:06:06]} 13. h3 {[%emt 0:03:08]} Rfe8 {[%emt 0:04:38]} 14. Qd3 {[%emt 0:04:48]} a5 {[%emt 0:12:33]} 15. a4 {[%emt 0:03:41]} Red8 {[%emt 0:10:18]} 16. c3 {[%emt 0:08:49]} Nd6 {[%emt 0:01:16]} 17. Bf4 {[%emt 0:07:55]} Qb6 {[%emt 0:00:35]} 18. Nbd4 {[%emt 0:00:49]} Nfe4 {[%emt 0:02:18]} 19. b3 {[%emt 0:05:17]} Rac8 {[%emt 0:02:16]} 20. Rac1 {[%emt 0:02:36]} Nc5 {[%emt 0:04:27]} 21. Qb1 {[%emt 0:06:25]} Nde4 {[%emt 0:05:30]} 22. Nf5 {[%emt 0:04:52]} Bf6 {[%emt 0:05:35]} 23. N3d4 {[%emt 0:01:42]} Ne6 {[%emt 0:05:54]} 24. Be3 {[%emt 0:03:18]} Nxc3 {[%emt 0:08:52]} 25. Qd3 {[%emt 0:13:19]} Qb4 {[%emt 0:09:27]} 26. Rc2 {[%emt 0:04:04]} Nxd4 {[%emt 0:05:40]} 27. Nxd4 {[%emt 0:00:50]} Ne4 {[%emt 0:00:14]} 28. Rfc1 {[%emt 0:01:36]} Rxc2 {[%emt 0:00:11]} 29. Nxc2 {[%emt 0:02:41]} Qe7 {[%emt 0:02:36]} 30. Bb6 {[%emt 0:01:41]} Rc8 {[%emt 0:00:29]} 31. Re1 {[%emt 0:03:48]} Qd6 {[%emt 0:05:25]} 32. Rxe4 {[%emt 0:00:58]} Qxb6 {[%emt 0:00:08]} 33. Qxd5 {[%emt 0:01:04]} g6 {[%emt 0:00:10]} 34. Rc4 {[%emt 0:01:59]} Rd8 {[%emt 0:00:35]} 35. Qf3 {[%emt 0:00:15]} Kg7 {[%emt 0:00:31]} 36. Rf4 {[%emt 0:00:54]} Rc8 {[%emt 0:00:40]} 37. Qe3 {[%emt 0:06:11]} Qd6 {[%emt 0:03:25]} 38. Rc4 {[%emt 0:01:05]} Rxc4 {[%emt 0:00:06]} 39. bxc4 {[%emt 0:00:02]} Qd1+ {[%emt 0:00:05]} 40. Ne1 {[%emt 0:00:00]} Qxa4 {[%emt 0:00:00]} 41. Qc1 {[%emt 0:06:37]} Qb3 {[%emt 0:02:48]} 42. Qc2 {[%emt 0:06:16]} a4 {[%emt 0:00:34]} 43. Kf1 {[%emt 0:00:32]} Bc3 {[%emt 0:00:54]} 44. c5 {[%emt 0:01:37]} Bxe1 {[%emt 0:01:00]} 0-1